[Event "WJCC U20 Girls 2019"]
[Site "New Delhi"]
[Date "2019.10.22"]
[Round "8.34"]
[White "Eesha Ajay Sarda"]
[Black "Vlkova, Anezka"]
[Result "1/2-1/2"]
[ECO "C01"]
[WhiteElo "1744"]
[BlackElo "1972"]
[Annotator "NA"]
[PlyCount "89"]
[EventDate "2019.10.15"]
[EventType "swiss"]
[EventCountry "IND"]
[SourceTitle "playchess.com"]
[Source "ChessBase"]
[SourceQuality "1"]
[TimeControl "40/5400+30:1800+30"]

1. d4 {[%emt 0:00:00]} e6 {[%emt 0:00:00]} 2. e4 {[%emt 0:00:56]} d5 {[%emt 0:00:00]} 3. exd5 {[%emt 0:00:06]} exd5 {[%emt 0:00:00]} 4. Bd3 {[%emt 0:00:14]} Nc6 {[%emt 0:00:00]} 5. Ne2 {[%emt 0:00:10]} Qf6 {[%emt 0:00:28]} (5... Nf6 6. Bg5 Be6 7. c3 h6 8. Bh4 Be7 9. Nd2 Qd7 10. Qc2 g5 11. Bg3 Nh5 12. O-O-O f5 13. h4 {0-1 (31) Cukrowski,F (2424)-Nasuta,G (2533) Suwalki 2019}) 6. Nbc3 {[%emt 0:01:31] C01: French: Exchange Variation} Be6 {[%emt 0:04:23]} 7. Be3 $146 {[%emt 0:03:27]} ({Predecessor:} 7. Bf4 O-O-O 8. Qd2 h6 9. Nb5 Rd7 10. c3 Nge7 11. a4 g5 12. Nxa7+ Kb8 13. Nxc6+ Nxc6 {1-0 (28) Pfeiffer,A (2217)-Harakis,A (2167) London 2000}) 7... Nb4 {[%emt 0:07:01]} 8. Nb5 {[%emt 0:04:14]} Kd7 {[%emt 0:02:43]} 9. Bf4 {[%emt 0:05:13]} c6 {[%emt 0:08:05]} 10. Nc7 {[%emt 0:02:28]} Rd8 {[%emt 0:02:46]} 11. Be5 {[%emt 0:06:10]} Nxd3+ {[%emt 0:04:38]} 12. Qxd3 {[%emt 0:00:16]} Qf5 {[%emt 0:06:59]} 13. Qb3 {[%emt 0:19:46]} Kc8 {[%emt 0:06:43]} 14. Qa4 {[%emt 0:02:42]} f6 {[%emt 0:00:35]} 15. Ng3 {[%emt 0:00:45]} Qg4 {[%emt 0:11:23]} 16. h3 {[%emt 0:03:59]} Qh4 {[%emt 0:00:37]} 17. Nxe6 {[%emt 0:03:13]} Re8 {[%emt 0:02:04]} 18. Qa5 {[%emt 0:18:06]} Bd6 {[%emt 0:06:07]} 19. Nxg7 {[%emt 0:00:50]} Rxe5+ {[%emt 0:01:23]} 20. Kf1 $15 {[%emt 0:03:57]} Qxd4 {[%emt 0:01:26]} 21. N7f5 {[%emt 0:01:01]} Qc4+ {[%emt 0:01:58]} 22. Kg1 {[%emt 0:00:09]} Bc5 {[%emt 0:02:03]} 23. c3 {[%emt 0:02:59]} Ne7 {[%emt 0:04:28]} 24. Nxe7+ {[%emt 0:03:47]} Rxe7 {[%emt 0:00:30]} 25. Rf1 {[%emt 0:00:59]} h5 {[%emt 0:01:30]} 26. b3 {[%emt 0:01:10]} Bb6 {[%emt 0:02:51]} 27. bxc4 {[%emt 0:04:46]} Bxa5 {[%emt 0:00:05]} 28. cxd5 {[%emt 0:00:11]} cxd5 {[%emt 0:01:18]} 29. Rd1 {[%emt 0:00:16]} Bxc3 {[%emt 0:06:33]} 30. Rxd5 {[%emt 0:00:22]} Be5 {[%emt 0:00:32]} 31. Nf5 {[%emt 0:02:20]} Rc7 {[%emt 0:01:21]} 32. g3 {[%emt 0:01:27]} Rd8 {[%emt 0:05:45]} 33. Rxd8+ {[%emt 0:03:00]} Kxd8 {[%emt 0:00:02]} 34. Kg2 {[%emt 0:00:08]} Rc2 {[%emt 0:01:10]} 35. Rd1+ {[%emt 0:00:06]} Kc7 {[%emt 0:00:09]} 36. a4 {[%emt 0:01:00]} a6 {[%emt 0:02:13]} 37. Ng7 {[%emt 0:03:01]} b5 {[%emt 0:01:00]} 38. axb5 {[%emt 0:01:08]} axb5 {[%emt 0:00:06]} 39. Nxh5 {[%emt 0:01:36]} b4 {[%emt 0:00:47]} 40. Rb1 {[%emt 0:01:17]} Bd4 {[%emt 0:07:19]} 41. Rxb4 {[%emt 0:01:52]} Rxf2+ {[%emt 0:00:11]} 42. Kh1 {[%emt 0:00:10]} Rf1+ {[%emt 0:00:09]} 43. Kg2 {[%emt 0:00:12]} Rf2+ {[%emt 0:00:04]} 44. Kh1 {[%emt 0:00:06]} Rf1+ {[%emt 0:00:09]} 45. Kg2 {[%emt 0:00:22]} 1/2-1/2

[Event "WJCC U20 Girls 2019"]
[Site "New Delhi"]
[Date "2019.10.22"]
[Round "8.37"]
[White "Ortiz Verdezoto, Anahi"]
[Black "Jayaweera, Sayuni Gihansa"]
[Result "1-0"]
[ECO "D86"]
[WhiteElo "2055"]
[BlackElo "1788"]
[Annotator "NA"]
[PlyCount "109"]
[EventDate "2019.10.15"]
[EventType "swiss"]
[EventCountry "IND"]
[SourceTitle "playchess.com"]
[Source "ChessBase"]
[SourceQuality "1"]
[TimeControl "40/5400+30:1800+30"]

1. d4 {[%emt 0:00:00]} Nf6 {[%emt 0:00:00]} 2. c4 {[%emt 0:00:02]} g6 {[%emt 0:00:01]} 3. Nc3 {[%emt 0:00:41]} d5 {[%emt 0:00:14]} 4. cxd5 {[%emt 0:00:08]} Nxd5 {[%emt 0:00:10]} 5. e4 {[%emt 0:00:11]} Nxc3 {[%emt 0:00:26]} 6. bxc3 {[%emt 0:00:51]} Bg7 {[%emt 0:00:12]} 7. Bc4 {[%emt 0:00:10]} c5 {[%emt 0:00:38]} 8. Be3 {[%emt 0:00:10]} O-O {[%emt 0:01:46]} 9. Ne2 {[%emt 0:00:20]} cxd4 {[%emt 0:00:47]} 10. cxd4 {[%emt 0:01:38]} Qa5+ {[%emt 0:00:38]} 11. Bd2 {[%emt 0:04:27]} Qa3 {[%emt 0:04:29]} 12. Rb1 {[%emt 0:03:23]} Nc6 {[%emt 0:03:39]} 13. d5 {[%emt 0:05:08] D86: Exchange Grünfeld: Classical Line (7 Bc4)} Ne5 {[%emt 0:00:09]} 14. Qb3 {[%emt 0:13:15]} Qxb3 {[%emt 0:03:17]} 15. Bxb3 {[%emt 0:05:50]} Nd3+ {[%emt 0:00:19]} 16. Kf1 {[%emt 0:00:05]} Bd7 $146 {[%emt 0:02:15]} ({Predecessor:} 16... b6 17. Be3 Ba6 18. Kg1 Rac8 19. h3 Nc5 20. Ng3 Bd3 {1-0 (61) Kraidman,Y (2445)-Sowray,P (2210) London 1979}) 17. Be3 {[%emt 0:33:30]} b6 {[%emt 0:00:46]} 18. Bc2 {[%emt 0:05:28]} Ne5 {[%emt 0:02:20]} 19. Nd4 {[%emt 0:03:49]} Rac8 {[%emt 0:00:52]} 20. Ke2 {[%emt 0:00:56]} Nc4 {[%emt 0:00:30]} 21. Bd3 {[%emt 0:00:46]} Nxe3 {[%emt 0:01:19]} 22. fxe3 {[%emt 0:02:06]} Rc3 {[%emt 0:01:29]} 23. Rhc1 {[%emt 0:00:51]} Rfc8 {[%emt 0:00:08]} 24. Rxc3 {[%emt 0:00:49]} Rxc3 {[%emt 0:00:04]} 25. Kd2 {[%emt 0:01:47]} Rc5 {[%emt 0:00:49]} 26. Rc1 {[%emt 0:01:37]} Rxc1 {[%emt 0:00:15]} 27. Kxc1 {[%emt 0:00:01]} Kf8 {[%emt 0:00:45]} 28. Kd2 {[%emt 0:00:25]} Ke8 {[%emt 0:01:51]} 29. h3 {[%emt 0:00:47]} Kd8 {[%emt 0:00:36]} 30. Nf3 {[%emt 0:00:07]} h6 {[%emt 0:00:31]} 31. e5 {[%emt 0:00:26]} Kc7 {[%emt 0:00:15]} 32. Bc4 {[%emt 0:04:49]} Be8 {[%emt 0:00:50]} 33. Kd3 {[%emt 0:01:38]} b5 {[%emt 0:00:14]} 34. Bb3 {[%emt 0:00:01]} a5 {[%emt 0:00:19]} 35. e4 {[%emt 0:01:33]} a4 {[%emt 0:01:18]} 36. Bc2 {[%emt 0:04:39]} Kb6 {[%emt 0:00:15]} 37. Kd4 {[%emt 0:00:09]} Bd7 {[%emt 0:01:00]} 38. a3 {[%emt 0:01:09]} Bc8 {[%emt 0:01:27]} 39. Ne1 {[%emt 0:01:51]} g5 $11 {[%emt 0:01:43]} 40. Bd1 {[%emt 0:00:57]} f5 {[%emt 0:01:43]} 41. Nd3 {[%emt 0:33:21]} f4 {[%emt 0:30:47]} 42. Bh5 {[%emt 0:00:00]} Bd7 {[%emt 0:00:00]} 43. Nb4 {[%emt 0:00:00]} Bh8 {[%emt 0:00:00]} 44. Bg6 {[%emt 0:00:00]} Bg7 {[%emt 0:00:00]} 45. Bf5 {[%emt 0:00:00]} Be8 {[%emt 0:00:00]} 46. Nd3 {[%emt 0:00:00]} Bh5 {[%emt 0:00:00]} 47. Bd7 {[%emt 0:00:00]} Be2 {[%emt 0:00:00]} 48. Nb4 {[%emt 0:00:00]} Bf1 {[%emt 0:00:00]} 49. Nc6 {[%emt 0:00:00]} Bxg2 {[%emt 0:00:00]} 50. Nxe7 {[%emt 0:01:05]} f3 {[%emt 0:00:00]} 51. d6 {[%emt 0:01:02]} f2 {[%emt 0:00:00]} 52. Nd5+ {[%emt 0:00:05]} Kb7 {[%emt 0:00:00]} 53. Bxb5 {[%emt 0:00:02]} f1=Q {[%emt 0:00:00]} 54. Bxf1 {[%emt 0:00:02]} Bxf1 {[%emt 0:00:00]} 55. d7 {[%emt 0:00:01]} 1-0

[Event "WJCC U20 Girls 2019"]
[Site "New Delhi"]
[Date "2019.10.22"]
[Round "8.38"]
[White "Tamarozi, Isabelle"]
[Black "Rathi Dhanashree"]
[Result "1-0"]
[ECO "B41"]
[WhiteElo "2029"]
[BlackElo "1692"]
[Annotator "NA"]
[PlyCount "105"]
[EventDate "2019.10.15"]
[EventType "swiss"]
[EventCountry "IND"]
[SourceTitle "playchess.com"]
[Source "ChessBase"]
[SourceQuality "1"]
[TimeControl "40/5400+30:1800+30"]

1. e4 {[%emt 0:00:00]} c5 {[%emt 0:00:02]} 2. Nf3 {[%emt 0:00:21]} e6 {[%emt 0:00:21]} 3. d4 {[%emt 0:00:21]} cxd4 {[%emt 0:00:13]} 4. Nxd4 {[%emt 0:00:16]} a6 {[%emt 0:00:16]} 5. c4 {[%emt 0:00:37]} Nf6 {[%emt 0:00:14]} 6. Nc3 {[%emt 0:00:41]} Qc7 {[%emt 0:00:12]} 7. a3 {[%emt 0:00:29]} b6 {[%emt 0:02:14]} 8. Be3 {[%emt 0:10:29]} Bb7 {[%emt 0:01:24]} 9. f3 {[%emt 0:00:32]} Be7 {[%emt 0:02:04]} 10. Be2 {[%emt 0:00:36]} d6 {[%emt 0:01:37]} 11. Qd2 {[%emt 0:00:32]} Nbd7 {[%emt 0:00:56]} 12. Rc1 {[%emt 0:01:01]} O-O {[%emt 0:02:13]} 13. O-O {[%emt 0:00:28]} Rfe8 {[%emt 0:04:27]} 14. b4 {[%emt 0:03:00]} Rac8 {[%emt 0:03:54]} 15. Rfd1 {[%emt 0:00:24]} Qb8 {[%emt 0:08:04]} 16. Nb3 {[%emt 0:00:23]} Bc6 {[%emt 0:07:57] A31: Symmetrical English: 2 Nf3 Nf6 3 d4} 17. Qe1 {[%emt 0:11:39]} (17. Kh1 h6 18. Bf1 Ne5 19. Qf2 Bd7 20. Nb1 Ba4 21. N1d2 b5 22. c5 dxc5 23. Bxc5 Bxc5 24. Rxc5 {0-1 (62) Negi,P (2664)-Hou,Y (2683) Saint Louis 2015}) 17... Nf8 $146 {[%emt 0:26:11]} ({Predecessor:} 17... Bd8 18. Bf4 Bc7 19. Qd2 Ne5 20. Bxe5 dxe5 21. Qe3 Nh5 22. g3 f5 23. Kg2 Nf6 24. Bd3 g6 25. Qh6 Qa8 26. Re1 Red8 27. Bb1 Rd4 28. Nxd4 exd4 29. Nd5 exd5 30. exd5 Bd7 31. Re7 {1-0 (31) Burian,S (2001)-Biermann,F (2028) Willingen 2019}) 18. Qf2 {[%emt 0:05:49]} N6d7 {[%emt 0:05:04]} 19. Kh1 {[%emt 0:10:50]} Bf6 {[%emt 0:07:17]} 20. Bd4 {[%emt 0:07:11]} Red8 {[%emt 0:04:31]} 21. Rc2 $14 {[%emt 0:07:42]} Ba8 {[%emt 0:12:02]} 22. Bf1 {[%emt 0:09:25]} Bxd4 {[%emt 0:01:29]} 23. Qxd4 {[%emt 0:04:02]} Ne5 {[%emt 0:01:10]} 24. Rcd2 {[%emt 0:02:01]} Qc7 {[%emt 0:00:57]} 25. Na4 {[%emt 0:07:44]} Nxc4 {[%emt 0:02:23]} 26. Bxc4 {[%emt 0:00:32]} Qxc4 {[%emt 0:02:06]} 27. Qe3 {[%emt 0:01:27]} b5 {[%emt 0:01:09]} 28. Nb6 {[%emt 0:02:55]} Qc3 {[%emt 0:00:29]} 29. Rd3 {[%emt 0:00:36]} Qb2 {[%emt 0:00:22]} 30. Nxc8 {[%emt 0:01:22]} Rxc8 {[%emt 0:00:03]} 31. Nd4 {[%emt 0:05:37]} d5 {[%emt 0:01:28]} 32. e5 {[%emt 0:00:52]} Nd7 {[%emt 0:01:48]} 33. f4 {[%emt 0:04:26]} Nb6 {[%emt 0:00:53]} 34. f5 {[%emt 0:01:03]} Nc4 {[%emt 0:00:29]} 35. Qg3 {[%emt 0:01:05]} g6 {[%emt 0:00:21]} 36. f6 {[%emt 0:00:40]} h6 {[%emt 0:00:56]} 37. Qh4 {[%emt 0:00:35]} h5 {[%emt 0:00:21]} 38. Qg5 {[%emt 0:00:21]} Kf8 {[%emt 0:00:09]} 39. Qh6+ {[%emt 0:00:43]} Ke8 {[%emt 0:00:05]} 40. Qg7 {[%emt 0:00:36]} Nxe5 {[%emt 0:00:46]} 41. Nxe6 {[%emt 0:30:24]} Kd7 {[%emt 0:30:37]} 42. Nc5+ {[%emt 0:00:00]} Kd6 {[%emt 0:00:00]} 43. R3d2 {[%emt 0:00:00]} Qxa3 {[%emt 0:00:00]} 44. h3 {[%emt 0:00:00]} Qxb4 {[%emt 0:00:00]} 45. Nd3 {[%emt 0:00:00]} Nxd3 {[%emt 0:00:00]} 46. Rxd3 {[%emt 0:00:00]} Qe4 {[%emt 0:00:00]} 47. Qxf7 {[%emt 0:00:00]} Rc2 {[%emt 0:01:46]} 48. Qf8+ {[%emt 0:00:00]} Kd7 {[%emt 0:00:12]} 49. Qg7+ {[%emt 0:00:00]} Kd6 {[%emt 0:00:11]} 50. Rg3 {[%emt 0:00:00]} d4 {[%emt 0:02:04]} 51. Rxg6 {[%emt 0:00:00]} Qe3 {[%emt 0:01:18]} 52. f7+ {[%emt 0:00:00]} Kd5 {[%emt 0:00:31]} 53. f8=Q {[%emt 0:00:00] Ke6} 1-0

[Event "WJCC U20 Girls 2019"]
[Site "New Delhi"]
[Date "2019.10.22"]
[Round "8.39"]
[White "Abdala Cancino, Patricia Anastas"]
[Black "Cosme Contreras, Trilce"]
[Result "0-1"]
[ECO "B50"]
[WhiteElo "1608"]
[BlackElo "2027"]
[Annotator "NA RC"]
[PlyCount "60"]
[EventDate "2019.10.15"]
[EventType "swiss"]
[EventCountry "IND"]
[SourceTitle "playchess.com"]
[Source "ChessBase"]
[SourceQuality "1"]
[TimeControl "40/5400+30:1800+30"]

1. e4 {[%emt 0:01:09]} c5 {[%emt 0:00:00]} 2. Nf3 {[%emt 0:01:17]} d6 {[%emt 0:00:00]} 3. d3 {[%emt 0:00:12]} Nc6 {[%emt 0:03:24]} 4. c3 {[%emt 0:03:22]} Nf6 {[%emt 0:01:01]} 5. g3 {[%emt 0:00:09]} g6 {[%emt 0:00:51]} 6. Bg2 {[%emt 0:00:06]} Bg7 {[%emt 0:00:03]} 7. O-O {[%emt 0:00:09]} O-O {[%emt 0:02:08]} 8. Re1 {[%emt 0:00:10]} Bg4 {[%emt 0:00:46]} 9. h3 {[%emt 0:00:37]} Bxf3 {[%emt 0:01:03]} 10. Qxf3 {[%emt 0:00:14]} Rc8 {[%emt 0:00:24]} 11. g4 {[%emt 0:01:11]} b5 {[%emt 0:00:51]} 12. Be3 {[%emt 0:01:12]} b4 {[%emt 0:01:23]} 13. d4 {[%emt 0:00:08]} bxc3 {[%emt 0:00:34]} 14. bxc3 {[%emt 0:00:17]} cxd4 {[%emt 0:08:54]} 15. Bxd4 {[%emt 0:01:02]} Nxd4 {[%emt 0:01:52]} 16. cxd4 {[%emt 0:02:48]} Nd7 {[%emt 0:00:04]} 17. Qe3 {[%emt 0:01:06]} Qb6 {[%emt 0:00:40]} 18. Rd1 {[%emt 0:01:21]} Qb2 {[%emt 0:00:11]} 19. Nd2 {[%emt 0:00:17]} Bxd4 {[%emt 0:00:36]} 20. Qd3 {[%emt 0:03:09]} Ne5 {[%emt 0:01:18]} 21. Qa6 {[%emt 0:02:23]} Rc6 {[%emt 0:03:29]} 22. Qa4 {[%emt 0:00:41]} Qb6 {[%emt 0:00:37]} 23. Rab1 {[%emt 0:01:20]} Bxf2+ {[%emt 0:01:48]} 24. Kf1 {[%emt 0:06:00]} Qe3 {[%emt 0:00:48]} 25. Rb3 {[%emt 0:00:19]} Qf4 {[%emt 0:15:12]} 26. Rf3 {[%emt 0:04:53]} Nxf3 {[%emt 0:00:05]} 27. Nxf3 {[%emt 0:01:28]} Bc5 {[%emt 0:05:29]} 28. Qxc6 {[%emt 0:04:49]} Qe3 {[%emt 0:00:05]} 29. Rd2 {[%emt 0:00:06]} Rb8 {[%emt 0:00:10]} 30. Re2 {[%emt 0:02:02]} Rb1+ {[%emt 0:00:18]} 0-1

[Event "WJCC U20 Girls 2019"]
[Site "New Delhi"]
[Date "2019.10.22"]
[Round "8.40"]
[White "Punsalan, Vyanla M"]
[Black "Dahampriya, H K T Dewnethmie"]
[Result "1/2-1/2"]
[ECO "B22"]
[WhiteElo "1964"]
[BlackElo "1629"]
[Annotator "NA"]
[PlyCount "88"]
[EventDate "2019.10.15"]
[EventType "swiss"]
[EventCountry "IND"]
[SourceTitle "playchess.com"]
[Source "ChessBase"]
[SourceQuality "1"]
[TimeControl "40/5400+30:1800+30"]

1. e4 {[%emt 0:00:00]} c5 {[%emt 0:00:00]} 2. c3 {[%emt 0:00:00]} Nf6 {[%emt 0:00:00]} 3. e5 {[%emt 0:00:10]} Nd5 {[%emt 0:00:00]} 4. d4 {[%emt 0:00:16]} cxd4 {[%emt 0:00:00]} 5. Nf3 {[%emt 0:00:12]} Nc6 {[%emt 0:01:07]} 6. cxd4 {[%emt 0:00:41]} d6 {[%emt 0:00:07]} 7. Nc3 {[%emt 0:03:33]} dxe5 {[%emt 0:01:24]} 8. dxe5 {[%emt 0:02:05]} Nxc3 {[%emt 0:00:22]} 9. Qxd8+ {[%emt 0:00:35]} Nxd8 {[%emt 0:00:06]} 10. bxc3 {[%emt 0:00:12]} Bd7 {[%emt 0:00:24]} 11. Be3 {[%emt 0:02:05]} g6 {[%emt 0:05:48] B22: Sicilian: 2 c3} (11... e6 12. Nd4 Rc8 13. Kd2 a6 14. Rb1 Bc5 15. Bd3 Ba4 16. f4 b5 17. f5 exf5 18. Nxf5 Ne6 19. Rhe1 {0-1 (58) Sveshnikov,E (2502)-Shirov,A (2685) Jurmala 2016}) 12. h4 {[%emt 0:07:19]} h5 {[%emt 0:00:58]} 13. Nd4 {[%emt 0:01:33]} a6 $146 {[%emt 0:01:40]} ({Predecessor:} 13... Rc8 14. Kd2 Bg7 15. f4 a6 16. Rb1 f6 17. exf6 Bxf6 18. Bd3 Rg8 19. Rb6 {½-½ (53) Sychov,A-Kaskelaynen,A ICCF email 2007}) 14. Be2 {[%emt 0:06:14]} Bg7 {[%emt 0:00:55]} 15. f4 {[%emt 0:01:22]} Rc8 {[%emt 0:00:47]} 16. Kd2 {[%emt 0:01:33]} O-O {[%emt 0:00:42]} 17. g4 {[%emt 0:02:24]} hxg4 {[%emt 0:10:07]} 18. Rag1 {[%emt 0:06:17]} f5 {[%emt 0:23:38]} 19. exf6 {[%emt 0:03:38]} Rxf6 {[%emt 0:00:25]} 20. Bxg4 {[%emt 0:03:27]} Bxg4 {[%emt 0:00:07]} 21. Rxg4 {[%emt 0:00:48]} Kf7 {[%emt 0:00:37]} 22. h5 {[%emt 0:16:54]} gxh5 {[%emt 0:01:37]} 23. Rxh5 {[%emt 0:02:51]} Rh6 {[%emt 0:01:44]} 24. Rxg7+ {[%emt 0:06:02]} Kxg7 {[%emt 0:00:07]} 25. Nf5+ {[%emt 0:00:05]} Kg6 {[%emt 0:00:07]} 26. Rg5+ {[%emt 0:00:05]} Kh7 {[%emt 0:00:15]} 27. Rg7+ {[%emt 0:00:18]} Kh8 {[%emt 0:00:42]} 28. Bd4 {[%emt 0:00:30]} Rc4 {[%emt 0:08:33]} 29. Be5 {[%emt 0:05:36]} Re6 $11 {[%emt 0:02:18]} 30. Nxe7 {[%emt 0:06:25]} Rxe5 {[%emt 0:08:36]} 31. Rg8+ {[%emt 0:00:16]} Kh7 {[%emt 0:00:04]} 32. fxe5 {[%emt 0:00:18]} Nc6 {[%emt 0:02:57]} 33. Rc8 {[%emt 0:02:14]} Nxe5 {[%emt 0:01:36]} 34. Rxc4 {[%emt 0:00:28]} Nxc4+ {[%emt 0:00:04]} 35. Kd3 {[%emt 0:00:32]} Nd6 {[%emt 0:04:56]} 36. c4 {[%emt 0:02:52]} Kg7 {[%emt 0:00:51]} 37. c5 {[%emt 0:02:15]} Ne8 {[%emt 0:01:56]} 38. c6 {[%emt 0:07:44]} bxc6 {[%emt 0:00:08]} 39. Nxc6 {[%emt 0:00:05]} Kf7 {[%emt 0:00:58]} 40. Kc4 {[%emt 0:00:36]} Nc7 {[%emt 0:03:21]} 41. Kc5 {[%emt 0:31:37]} Ke8 {[%emt 0:30:59]} 42. Nb8 {[%emt 0:01:51]} Kd8 {[%emt 0:01:06]} 43. Kc6 {[%emt 0:01:00]} Kc8 {[%emt 0:00:51]} 44. Nxa6 {[%emt 0:02:16]} Nxa6 {[%emt 0:00:05]} 1/2-1/2

[Event "WJCC U20 Girls 2019"]
[Site "New Delhi"]
[Date "2019.10.22"]
[Round "8.41"]
[White "Figueroa Bernal, Julia Dennis"]
[Black "Levitan, Ronit"]
[Result "1-0"]
[ECO "C44"]
[WhiteElo "1777"]
[BlackElo "1893"]
[Annotator "NA"]
[PlyCount "87"]
[EventDate "2019.10.15"]
[EventType "swiss"]
[EventCountry "IND"]
[SourceTitle "playchess.com"]
[Source "ChessBase"]
[SourceQuality "1"]
[TimeControl "40/5400+30:1800+30"]

1. e4 {[%emt 0:00:00]} e5 {[%emt 0:00:29]} 2. Nf3 {[%emt 0:00:00]} Nc6 {[%emt 0:00:06]} 3. d4 {[%emt 0:00:12]} exd4 {[%emt 0:00:12]} 4. Nxd4 {[%emt 0:00:08]} Nf6 {[%emt 0:00:11]} 5. Nxc6 {[%emt 0:00:13]} bxc6 {[%emt 0:00:19]} 6. Qe2 {[%emt 0:00:47]} Bb4+ {[%emt 0:00:48]} 7. c3 {[%emt 0:01:05]} Bc5 {[%emt 0:00:32]} 8. e5 {[%emt 0:00:42]} Nd5 {[%emt 0:00:43]} 9. c4 {[%emt 0:04:17]} Nb6 {[%emt 0:01:02]} 10. Qg4 {[%emt 0:00:41]} g6 {[%emt 0:00:27]} 11. Nc3 {[%emt 0:06:50]} d5 {[%emt 0:10:38]} 12. Qg3 {[%emt 0:05:15]} O-O {[%emt 0:08:04]} 13. Bh6 {[%emt 0:03:01]} Re8 {[%emt 0:01:37]} 14. O-O-O {[%emt 0:01:33]} Bf5 {[%emt 0:24:10]} 15. f4 {[%emt 0:07:16]} a5 {[%emt 0:04:00]} 16. h3 {[%emt 0:04:28]} Qb8 {[%emt 0:07:08]} 17. cxd5 {[%emt 0:12:42]} Nxd5 {[%emt 0:00:11]} 18. Nxd5 {[%emt 0:00:23]} cxd5 {[%emt 0:00:03]} 19. Bd3 {[%emt 0:00:56]} Bd4 {[%emt 0:06:08]} 20. Rd2 {[%emt 0:03:08]} Bxd3 {[%emt 0:02:16]} 21. Qxd3 {[%emt 0:00:10]} c5 {[%emt 0:00:15]} 22. h4 {[%emt 0:02:26]} Qb6 {[%emt 0:02:21]} 23. Re1 {[%emt 0:04:57]} a4 {[%emt 0:03:33]} 24. a3 {[%emt 0:05:08]} Rab8 {[%emt 0:00:54]} 25. Ree2 {[%emt 0:00:18]} Qa5 {[%emt 0:05:33]} 26. Qg3 {[%emt 0:03:39]} Rb3 {[%emt 0:06:43]} 27. Qg5 {[%emt 0:02:37]} Qb6 {[%emt 0:12:51]} 28. f5 {[%emt 0:04:07]} Rb8 {[%emt 0:01:35]} 29. fxg6 {[%emt 0:02:01]} hxg6 {[%emt 0:00:15]} 30. e6 {[%emt 0:00:35]} Rxa3 {[%emt 0:01:15]} 31. exf7+ {[%emt 0:00:58]} Kh7 {[%emt 0:00:04]} 32. f8=N+ Kg8 {[%emt 0:01:00]} 33. Qxd5+ {[%emt 0:03:54]} Kh8 {[%emt 0:00:07]} 34. Rxd4 {[%emt 0:01:38]} Ra1+ {[%emt 0:00:37]} 35. Kd2 {[%emt 0:00:16]} Qxb2+ {[%emt 0:00:09]} 36. Ke3 {[%emt 0:00:05]} cxd4+ {[%emt 0:01:06]} 37. Kf2 {[%emt 0:01:34]} Qb7 {[%emt 0:00:35]} 38. Nxg6+ {[%emt 0:02:13]} Kh7 {[%emt 0:00:04]} 39. Re7+ {[%emt 0:00:10]} Qxe7 {[%emt 0:00:04]} 40. Nxe7 {[%emt 0:00:04]} Rb2+ {[%emt 0:00:08]} 41. Kg3 {[%emt 0:30:07]} Ra3+ {[%emt 0:31:12]} 42. Kh2 {[%emt 0:00:25]} Rb6 {[%emt 0:00:00]} 43. Qg8+ {[%emt 0:00:00]} Kxh6 {[%emt 0:00:00]} 44. Qh8# {[%emt 0:00:00]} 1-0

[Event "WJCC U20 Girls 2019"]
[Site "New Delhi"]
[Date "2019.10.22"]
[Round "8.42"]
[White "Noshin, Anjum"]
[Black "Rousseau, Christilla"]
[Result "1-0"]
[ECO "B19"]
[WhiteElo "1793"]
[BlackElo "1648"]
[Annotator "NA"]
[PlyCount "73"]
[EventDate "2019.10.15"]
[EventType "swiss"]
[EventCountry "IND"]
[SourceTitle "playchess.com"]
[Source "ChessBase"]
[SourceQuality "1"]
[TimeControl "40/5400+30:1800+30"]

1. e4 {[%emt 0:00:00]} c6 {[%emt 0:00:00]} 2. d4 {[%emt 0:00:00]} d5 {[%emt 0:00:00]} 3. Nc3 {[%emt 0:00:00]} dxe4 {[%emt 0:00:00]} 4. Nxe4 {[%emt 0:00:00]} Bf5 {[%emt 0:00:00]} 5. Ng3 {[%emt 0:00:14]} Bg6 {[%emt 0:00:14]} 6. h4 {[%emt 0:00:27]} h6 {[%emt 0:00:09]} 7. Nf3 {[%emt 0:00:21]} Nd7 {[%emt 0:00:16]} 8. h5 {[%emt 0:00:38]} Bh7 {[%emt 0:00:13]} 9. Bd3 {[%emt 0:00:18]} Bxd3 {[%emt 0:00:20]} 10. Qxd3 {[%emt 0:00:08]} e6 {[%emt 0:00:31]} 11. Bd2 {[%emt 0:00:44]} Ngf6 {[%emt 0:00:35]} 12. O-O-O {[%emt 0:01:17]} Be7 {[%emt 0:00:42]} 13. Kb1 {[%emt 0:00:35]} Rc8 {[%emt 0:06:16]} 14. Ne4 {[%emt 0:12:42]} Nxe4 {[%emt 0:00:57]} 15. Qxe4 {[%emt 0:00:07]} Nf6 {[%emt 0:00:13]} 16. Qe2 {[%emt 0:02:58]} Qd5 {[%emt 0:03:27]} 17. Be3 {[%emt 0:21:16]} O-O {[%emt 0:14:18]} 18. Nd2 {[%emt 0:13:53]} Qf5 {[%emt 0:12:33]} 19. f3 {[%emt 0:05:09]} Nd5 {[%emt 0:04:04]} 20. g4 {[%emt 0:03:27]} Qh7 {[%emt 0:00:09]} 21. Nc4 {[%emt 0:06:48]} c5 {[%emt 0:06:51]} 22. dxc5 {[%emt 0:09:07]} Nxe3 {[%emt 0:05:21]} 23. Nxe3 {[%emt 0:00:22]} Bxc5 {[%emt 0:00:58]} 24. Rd3 {[%emt 0:01:04]} Bb6 {[%emt 0:07:41]} 25. b3 {[%emt 0:01:48]} Rc6 {[%emt 0:10:19]} 26. Nc4 {[%emt 0:00:50]} Bd8 {[%emt 0:06:33]} 27. Ne5 {[%emt 0:06:09]} Rc7 {[%emt 0:00:29]} 28. Rhd1 {[%emt 0:00:19]} Bf6 {[%emt 0:00:56]} 29. Nd7 {[%emt 0:08:04]} Rfc8 {[%emt 0:01:04]} 30. Nxf6+ {[%emt 0:00:54]} gxf6 {[%emt 0:00:04]} 31. Rd8+ {[%emt 0:00:20]} Rxd8 {[%emt 0:00:50]} 32. Rxd8+ {[%emt 0:00:08]} Kg7 {[%emt 0:00:03]} 33. Qd2 {[%emt 0:01:04]} b6 {[%emt 0:05:20]} 34. Kb2 {[%emt 0:00:37]} Rc5 {[%emt 0:03:32]} 35. c4 {[%emt 0:01:08]} b5 {[%emt 0:01:33]} 36. Qd6 {[%emt 0:00:28]} Re5 {[%emt 0:00:34]} 37. Qf8# {[%emt 0:00:07]} 1-0

[Event "WJCC U20 Girls 2019"]
[Site "New Delhi"]
[Date "2019.10.22"]
[Round "8.43"]
[White "Djuric, Anja"]
[Black "Lohani, Sujana"]
[Result "1-0"]
[ECO "B06"]
[WhiteElo "1493"]
[BlackElo "1671"]
[Annotator "NA RC"]
[PlyCount "39"]
[EventDate "2019.10.15"]
[EventType "swiss"]
[EventCountry "IND"]
[SourceTitle "playchess.com"]
[Source "ChessBase"]
[SourceQuality "1"]
[TimeControl "40/5400+30:1800+30"]

1. e4 {[%emt 0:00:00]} g6 {[%emt 0:00:00]} 2. d4 {[%emt 0:00:00]} Bg7 {[%emt 0:00:01]} 3. Nc3 {[%emt 0:00:53]} d6 {[%emt 0:00:34]} 4. f4 {[%emt 0:01:26]} c5 {[%emt 0:04:31]} 5. dxc5 {[%emt 0:01:28]} Qa5 {[%emt 0:03:49]} 6. cxd6 {[%emt 0:02:59]} Bxc3+ {[%emt 0:03:19]} 7. bxc3 {[%emt 0:00:37]} Qxc3+ {[%emt 0:00:41]} 8. Bd2 {[%emt 0:00:33]} Qd4 {[%emt 0:03:11]} 9. Bd3 {[%emt 0:02:26]} Bg4 {[%emt 0:13:48]} 10. Ne2 {[%emt 0:05:53]} Bxe2 {[%emt 0:00:50]} 11. Bxe2 {[%emt 0:00:07]} exd6 {[%emt 0:10:21]} 12. Rb1 {[%emt 0:06:24]} b6 {[%emt 0:04:18]} 13. Rb4 {[%emt 0:03:18]} Qg7 {[%emt 0:06:04]} 14. O-O {[%emt 0:03:22]} Ne7 {[%emt 0:02:49]} 15. Bb5+ {[%emt 0:01:09]} Kf8 {[%emt 0:22:11]} 16. Rc4 {[%emt 0:00:57]} a6 {[%emt 0:06:42]} 17. Bc3 {[%emt 0:00:32]} f6 {[%emt 0:00:32]} 18. Qxd6 {[%emt 0:00:57]} axb5 {[%emt 0:02:34]} 19. Bxf6 {[%emt 0:01:48]} bxc4 {[%emt 0:11:01]} 20. Qd8+ {[%emt 0:00:55]} 1-0